bitfinex-derivatives/quotes_BTCF0:USTF0_20250509
["timestamp","ask_amount","ask_price","bid_price","bid_amount"]
[1746781310594,0.79613193,103090.0,103080.0,0.81862614]
[1746781310791,0.83607601,103090.0,103080.0,0.81862614]
[1746781310986,1.31774631,103090.0,103080.0,0.09702614]
[1746781311189,0.1940143,103080.0,103070.0,0.9707331]
[1746781311494,0.5199143,103080.0,103070.0,1.06774042]
[1746781311696,0.5199143,103080.0,103070.0,1.23574042]
[1746781311993,0.5199143,103080.0,103070.0,1.38794042]
[1746781312589,0.5209143,103080.0,103070.0,1.38794042]
[1746781312781,0.5209143,103080.0,103070.0,1.44494042]
[1746781312988,0.51800481,103080.0,103070.0,1.38494042]
[1746781313295,0.51800481,103080.0,103070.0,1.50581072]
[1746781313601,0.52000481,103080.0,103070.0,1.52036072]
[1746781313792,0.52000481,103080.0,103070.0,1.39949042]
[1746781313988,0.52000481,103080.0,103070.0,1.52036072]
[1746781314495,0.35640481,103080.0,103070.0,1.52036072]
[1746781314692,0.35640481,103080.0,103070.0,1.39949042]
[1746781314891,0.35640481,103080.0,103070.0,1.52339395]
[1746781315392,0.35640481,103080.0,103070.0,1.52036072]
[1746781316203,0.35640481,103080.0,103070.0,1.10746072]
[1746781316392,0.35640481,103080.0,103070.0,1.11049395]
[1746781316593,0.35640481,103080.0,103070.0,1.11049404]
[1746781316792,0.35640481,103080.0,103070.0,1.11049394]
[1746781316993,0.35640481,103080.0,103070.0,0.98962364]
[1746781317194,0.3536201,103080.0,103070.0,0.98962361]
[1746781317395,0.3536201,103080.0,103070.0,1.11049391]
[1746781317797,0.3526201,103080.0,103070.0,0.99062361]
[1746781317999,0.5030201,103080.0,103070.0,0.98759042]
[1746781318204,0.5030201,103080.0,103070.0,0.98959042]
[1746781319298,0.5030201,103080.0,103070.0,1.11046072]
[1746781319500,0.5030201,103080.0,103070.0,1.10746072]
[1746781320599,0.5030201,103080.0,103070.0,0.98659042]
[1746781321102,0.5030201,103080.0,103070.0,1.10746072]
[1746781321603,0.50023629,103080.0,103070.0,1.1104941]
[1746781321798,0.3147,103080.0,103070.0,0.9896238]
[1746781322005,0.3147,103080.0,103070.0,1.1104941]
[1746781322395,0.5704212,103090.0,103080.0,0.1940143]
[1746781322705,0.6855209,103090.0,103080.0,0.9848846]
[1746781322904,0.6855209,103090.0,103080.0,0.8640143]
[1746781323095,0.6855209,103090.0,103080.0,1.08190133]
[1746781323495,0.6855209,103090.0,103080.0,1.11585133]
[1746781323895,0.6855209,103090.0,103080.0,0.99198103]
[1746781324092,0.6855209,103090.0,103080.0,1.11285133]
[1746781324298,0.6855209,103090.0,103080.0,0.99198103]
[1746781324503,0.6855209,103090.0,103080.0,1.11588446]
[1746781324898,0.6855209,103090.0,103080.0,1.00428561]
[1746781325096,0.6855209,103090.0,103080.0,1.12515591]
[1746781325503,0.6855209,103090.0,103080.0,1.12818901]
[1746781326208,0.68273799,103090.0,103080.0,1.12515591]
[1746781326998,0.68273799,103090.0,103080.0,1.12818898]
[1746781327302,0.68273799,103090.0,103080.0,1.00731868]
[1746781327508,0.68273799,103090.0,103080.0,1.12818898]
[1746781327693,0.68273799,103090.0,103080.0,1.12818902]
[1746781327899,0.68273799,103090.0,103080.0,1.00731872]
[1746781328409,0.68273799,103090.0,103080.0,1.12518902]
[1746781329604,0.72283681,103090.0,103080.0,1.12518902]
[1746781331120,0.72005481,103090.0,103080.0,1.12518902]
[1746781331323,0.72005481,103090.0,103080.0,1.00431872]
[1746781331622,0.72005481,103090.0,103080.0,1.01031872]
[1746781331805,0.72005481,103090.0,103080.0,1.13118902]
[1746781332905,0.36801882,103090.0,103080.0,1.40795932]
[1746781333110,0.40011432,103090.0,103080.0,1.40795932]
[1746781333417,0.39733322,103090.0,103080.0,1.16621872]
[1746781333604,0.55643322,103090.0,103080.0,1.16621872]
[1746781333808,0.55643322,103090.0,103080.0,1.28708902]
[1746781334217,0.55643322,103090.0,103080.0,1.16621872]
[1746781334418,0.55643322,103090.0,103080.0,1.18076872]
[1746781334619,0.55643322,103090.0,103080.0,1.30163902]
[1746781335510,0.55643322,103090.0,103080.0,1.29863889]
[1746781335711,0.55643322,103090.0,103080.0,1.17776859]
[1746781336010,0.55643322,103090.0,103080.0,1.29863889]
[1746781336820,0.55643322,103090.0,103080.0,1.02186859]
[1746781337319,0.55643322,103090.0,103080.0,1.14273889]
[1746781338920,0.55643322,103090.0,103080.0,1.13973899]
[1746781339219,0.55643322,103090.0,103080.0,0.99124331]
[1746781339419,0.55643322,103090.0,103080.0,0.87037301]
[1746781339618,0.55643322,103090.0,103080.0,0.99124332]
[1746781339919,0.55643322,103090.0,103080.0,0.98821023]
[1746781340417,0.20333772,103090.0,103080.0,1.26358053]
[1746781340621,0.04009882,103090.0,103080.0,1.47661361]
[1746781340919,0.04009882,103090.0,103080.0,1.57661361]
[1746781341120,0.18698694,103090.0,103080.0,1.57661361]
[1746781341908,0.18420674,103090.0,103080.0,1.33487301]
[1746781342122,0.18420674,103090.0,103080.0,1.57358053]
[1746781342317,0.18420674,103090.0,103080.0,1.57661336]
[1746781342818,0.53220224,103090.0,103080.0,1.23487276]
[1746781343121,0.68060224,103090.0,103080.0,0.51631673]
[1746781343420,0.68060224,103090.0,103080.0,0.5093497]
[1746781343623,0.68060224,103090.0,103080.0,0.703364]
[1746781343916,0.68060224,103090.0,103080.0,0.857864]
[1746781344112,0.68060224,103090.0,103080.0,0.9757343]
[1746781344312,0.68060224,103090.0,103080.0,0.854864]
[1746781345818,0.68060224,103090.0,103080.0,1.1217343]
[1746781346308,0.68060224,103090.0,103080.0,1.1187343]
[1746781346620,0.68060224,103090.0,103080.0,1.0847843]
[1746781347321,0.68060224,103090.0,103080.0,1.1187343]
[1746781347522,0.68060224,103090.0,103080.0,0.997864]
[1746781347724,0.68060224,103090.0,103080.0,1.01002561]
[1746781348028,0.68060224,103090.0,103080.0,1.13089591]
[1746781348421,0.67782294,103090.0,103080.0,1.13089591]
[1746781348722,0.67782294,103090.0,103080.0,1.1187343]
[1746781348914,0.65333365,103090.0,103080.0,1.11873435]
[1746781350723,0.65333365,103090.0,103080.0,0.99486405]
[1746781350910,0.65333365,103090.0,103080.0,1.11573435]
[1746781351110,0.65333365,103090.0,103080.0,1.11573434]
[1746781351618,0.65333365,103090.0,103080.0,0.99486404]
[1746781351815,0.65333365,103090.0,103080.0,1.12774909]
[1746781352320,0.65333365,103090.0,103080.0,1.00687879]
[1746781352515,0.65333365,103090.0,103080.0,1.12774909]
[1746781352917,0.4936171,103090.0,103080.0,1.12774909]
[1746781353115,0.2996216,103090.0,103080.0,1.12774909]
[1746781353319,0.3452171,103090.0,103080.0,1.12774909]
[1746781353515,0.3452171,103090.0,103080.0,1.28304909]
[1746781353716,0.1512216,103090.0,103080.0,1.44391939]
[1746781353915,0.3452171,103090.0,103080.0,1.61391939]
[1746781354115,0.3452171,103090.0,103080.0,1.45391939]
[1746781354323,0.1512216,103090.0,103080.0,1.61391939]
[1746781355022,0.1512216,103090.0,103080.0,1.61091939]
[1746781356924,0.1512216,103090.0,103080.0,1.49004909]
[1746781357124,0.3452171,103090.0,103080.0,1.36917879]
[1746781357327,0.4911171,103090.0,103080.0,1.49004909]
[1746781357629,0.29434411,103090.0,103080.0,1.49004909]
[1746781358125,0.29434411,103090.0,103080.0,1.49004885]
[1746781358427,0.14844411,103090.0,103080.0,1.49004885]
[1746781358821,0.14844411,103090.0,103080.0,1.36917855]
[1746781359127,0.14844411,103090.0,103080.0,1.49004885]
[1746781359922,0.14566751,103090.0,103080.0,1.61091915]
[1746781360427,0.14566751,103090.0,103080.0,1.50092905]
[1746781360724,0.14566751,103090.0,103080.0,1.62179935]
[1746781361025,0.14566751,103090.0,103080.0,1.50092905]
[1746781361226,0.29646751,103090.0,103080.0,1.50092905]
[1746781361426,0.29646751,103090.0,103080.0,1.49004886]
[1746781361726,0.14566751,103090.0,103080.0,1.49004886]
[1746781361921,0.14566751,103090.0,103080.0,1.30004886]
[1746781362126,0.14566751,103090.0,103080.0,1.32704886]
[1746781362328,0.14566751,103090.0,103080.0,1.37617856]
[1746781362625,0.14566751,103090.0,103080.0,1.49704886]
[1746781363130,0.14566751,103090.0,103080.0,1.49704887]
[1746781363424,0.14566751,103090.0,103080.0,1.61791917]
[1746781364226,0.14289181,103090.0,103080.0,1.61791917]
[1746781364930,0.14289181,103090.0,103080.0,1.61791914]
[1746781366327,0.14011701,103090.0,103080.0,1.61791914]
[1746781366532,0.23796002,103090.0,103080.0,1.61791914]
[1746781366831,0.23796002,103090.0,103080.0,1.61791911]
[1746781367833,0.39266002,103090.0,103080.0,1.49704881]
[1746781368330,0.23796002,103090.0,103080.0,1.49401608]
[1746781368534,0.23796002,103090.0,103080.0,1.49404881]
[1746781368727,0.23796002,103090.0,103080.0,1.61491911]
[1746781369128,0.23796002,103090.0,103080.0,1.49404881]
[1746781369330,0.38776002,103090.0,103080.0,1.32404881]
[1746781369525,0.58175552,103090.0,103080.0,1.20317851]
[1746781369731,0.58175552,103090.0,103080.0,0.52336421]
[1746781369935,0.48391251,103090.0,103080.0,0.71737851]
[1746781370135,0.48391251,103090.0,103080.0,0.83824907]
[1746781370327,0.48391251,103090.0,103080.0,0.71737877]
[1746781370735,0.48113861,103090.0,103080.0,0.71737877]
[1746781371034,0.48113861,103090.0,103080.0,0.83824907]
[1746781372635,0.48113861,103090.0,103080.0,0.81824907]
[1746781372833,0.28437011,103090.0,103080.0,0.81824907]
[1746781373030,0.47836561,103090.0,103080.0,1.00547877]
[1746781373226,0.47836561,103090.0,103080.0,1.12634907]
[1746781373625,0.47836561,103090.0,103080.0,1.26634907]
[1746781374033,0.57620862,103090.0,103080.0,1.26634907]
[1746781374430,0.57620862,103090.0,103080.0,1.41974907]
[1746781374630,0.57620862,103090.0,103080.0,1.43974907]
[1746781374836,0.57620862,103090.0,103080.0,1.29887877]
[1746781375031,0.57620862,103090.0,103080.0,1.41674907]
[1746781375431,0.57620862,103090.0,103080.0,1.41674897]
[1746781375633,0.57620862,103090.0,103080.0,1.42674897]
[1746781375842,0.38221312,103090.0,103080.0,1.41674897]
[1746781376043,0.38221312,103090.0,103080.0,1.60674897]
[1746781376939,0.47135458,103090.0,103080.0,1.60674897]
[1746781378533,0.46858247,103090.0,103080.0,1.60674897]
[1746781379137,0.31878247,103090.0,103080.0,1.60674897]
[1746781380442,0.31878247,103090.0,103080.0,1.72761927]
[1746781380643,0.31601126,103090.0,103080.0,1.72761927]
[1746781381340,0.18698447,103090.0,103080.0,1.72761927]
[1746781381541,0.18698447,103090.0,103080.0,2.07761927]
[1746781381739,0.18698447,103090.0,103080.0,1.74761927]
[1746781382143,0.18698447,103090.0,103080.0,1.91877867]
[1746781382346,0.18698447,103090.0,103080.0,2.16051927]
[1746781382545,0.18698447,103090.0,103080.0,1.91877867]
[1746781382744,0.18698447,103090.0,103080.0,2.16051921]
[1746781383143,0.18698447,103090.0,103080.0,1.84664891]
[1746781383340,0.53729937,103090.0,103080.0,2.02664891]
[1746781383944,0.49448447,103090.0,103080.0,1.90577861]
[1746781384147,0.49448447,103090.0,103080.0,2.02664891]
[1746781384647,0.3075,103090.0,103080.0,2.02664891]
[1746781384942,0.1512,103090.0,103080.0,2.14751921]
[1746781385143,0.1512,103090.0,103080.0,2.14751906]
[1746781385342,0.14842969,103090.0,103080.0,2.14751906]
[1746781385848,0.41729741,103100.0,103090.0,0.1940149]
[1746781386039,0.41729741,103100.0,103090.0,1.17451788]
[1746781386239,0.57009741,103100.0,103090.0,1.17451788]
[1746781386534,0.57009741,103100.0,103090.0,1.2715252]
[1746781386740,0.57009741,103100.0,103090.0,1.3054752]
[1746781386935,0.57009741,103100.0,103090.0,1.3200252]
[1746781387147,0.57109741,103100.0,103090.0,1.3200252]
[1746781387349,0.56832799,103100.0,103090.0,1.3200252]
[1746781387549,0.5037398,103100.0,103090.0,1.3200252]
[1746781388051,0.5057398,103100.0,103090.0,1.3200252]
[1746781388449,0.6544398,103100.0,103090.0,1.3200252]
[1746781388637,0.6544398,103100.0,103090.0,1.32002516]
[1746781389049,0.8484359,103100.0,103090.0,1.19915486]
[1746781389243,0.9693062,103100.0,103090.0,0.51933996]
[1746781389443,0.8484359,103100.0,103090.0,0.33955486]
[1746781389646,0.8484359,103100.0,103090.0,0.3544019]
[1746781390348,0.8484359,103100.0,103090.0,0.160387]
[1746781390650,1.3301062,103100.0,103090.0,0.160387]
[1746781390851,1.2092359,103100.0,103090.0,0.3544019]
[1746781391049,0.8484359,103100.0,103090.0,0.46042516]
[1746781391449,0.65167128,103100.0,103090.0,0.82122516]
[1746781391749,0.84566738,103100.0,103090.0,1.00425486]
[1746781393747,0.84566738,103100.0,103090.0,0.69735486]
[1746781393959,0.12338106,103110.0,103100.0,0.1939961]
[1746781394158,0.12338106,103110.0,103100.0,1.65889904]
[1746781394661,0.12338106,103110.0,103100.0,1.76589695]
[1746781395361,0.12338106,103110.0,103100.0,1.41502665]
[1746781395563,0.12338106,103110.0,103100.0,1.53589695]
[1746781395867,0.09614866,103110.0,103100.0,1.99676725]
[1746781396064,6e-08,103110.0,103100.0,1.99676725]
[1746781396268,0.11782037,103130.0,103120.0,0.1939584]
[1746781396479,0.001,103150.0,103140.0,0.1939208]
[1746781396764,0.1462,103150.0,103140.0,1.33029404]
[1746781396965,0.14343237,103150.0,103140.0,1.61489343]
[1746781397163,0.14343237,103150.0,103140.0,1.61489182]
[1746781397367,0.14343237,103150.0,103140.0,1.74576212]
[1746781398072,0.14343237,103150.0,103140.0,1.84576212]
[1746781398263,0.7010489,103180.0,103170.0,0.1938644]
[1746781398571,1.0100489,103180.0,103170.0,0.1938644]
[1746781398873,1.0100489,103180.0,103170.0,0.2907871]
[1746781399057,1.0100489,103180.0,103170.0,0.6515871]
[1746781399058,0.59801706,103180.0,103170.0,0.6515871]
[1746781399263,0.59801706,103180.0,103170.0,0.6546178]
[1746781400162,0.74471706,103180.0,103170.0,0.6515871]
[1746781400366,0.74471706,103180.0,103170.0,0.6546177]
[1746781400560,0.86558736,103180.0,103170.0,0.66583204]
[1746781400862,1.22638736,103180.0,103170.0,0.30503204]
[1746781401370,1.22638736,103180.0,103170.0,0.11116764]
[1746781401565,1.57331136,103180.0,103170.0,0.03392]
[1746781401762,0.1938832,103160.0,103150.0,0.7067422]
[1746781402162,0.4939832,103160.0,103150.0,0.8036649]
[1746781403271,0.4939832,103160.0,103150.0,0.3877649]
[1746781403570,0.4949832,103160.0,103150.0,0.3877649]
[1746781404072,0.61308766,103160.0,103150.0,0.2908247]
[1746781404470,0.61308766,103160.0,103150.0,0.3053738]
[1746781404665,0.97388766,103160.0,103150.0,0.3053738]
[1746781404865,1.12218766,103160.0,103150.0,0.1114718]
[1746781405067,1.23095157,103160.0,103150.0,0.0145491]
[1746781405268,0.193902,103150.0,103140.0,0.2278438]
[1746781405474,0.9718723,103150.0,103140.0,0.1939138]
[1746781405670,0.9718723,103150.0,103140.0,0.29085529]
[1746781405972,0.9718723,103150.0,103140.0,0.28785529]
[1746781406376,1.06882431,103150.0,103140.0,0.09694149]
[1746781406580,1.06882431,103150.0,103140.0,0.29186229]
[1746781406969,0.94795401,103150.0,103140.0,0.29186229]
[1746781407369,0.2963,103150.0,103140.0,0.77353259]
[1746781407568,0.2963,103150.0,103140.0,1.07183259]
[1746781407770,0.2963,103150.0,103140.0,1.07486379]
[1746781407974,0.2963,103150.0,103140.0,1.06883259]
[1746781408272,0.1451,103150.0,103140.0,1.27186366]
[1746781408480,0.1451,103150.0,103140.0,1.26186366]
[1746781408978,0.1451,103150.0,103140.0,1.27661647]
[1746781409565,0.1451,103150.0,103140.0,1.28661647]
[1746781409770,0.2423488,103170.0,103140.0,1.14117177]
[1746781409971,0.1573,103160.0,103150.0,0.9956211]
[1746781410276,0.1573,103160.0,103150.0,1.12642247]
[1746781410472,0.1573,103160.0,103150.0,1.32642247]
[1746781410669,0.1573,103160.0,103150.0,1.42337336]
[1746781410870,0.3504644,103170.0,103160.0,0.1938832]
[1746781411070,0.5077644,103170.0,103160.0,0.67858457]
[1746781411669,0.3521644,103170.0,103160.0,0.67858457]
[1746781412078,0.1583,103170.0,103160.0,0.67858457]
[1746781412278,0.1583,103170.0,103160.0,0.77251666]
[1746781412480,0.1573,103170.0,103160.0,0.78705666]
[1746781412677,0.3521644,103170.0,103160.0,0.66618636]
[1746781412874,0.4965644,103170.0,103160.0,0.30538605]
[1746781413382,0.4965644,103170.0,103160.0,0.42608483]
[1746781413679,0.4965644,103170.0,103160.0,0.58068483]
[1746781414379,0.3027,103170.0,103160.0,0.81761453]
[1746781414684,0.3027,103170.0,103160.0,0.93848488]
[1746781414876,0.1583,103170.0,103160.0,0.93848488]
[1746781415077,0.1583,103170.0,103160.0,1.12848488]
[1746781415272,0.1583,103170.0,103160.0,0.93848488]
[1746781415477,0.1583,103170.0,103160.0,1.11848488]
[1746781415683,0.1583,103170.0,103160.0,0.99761458]
[1746781415981,0.1573,103170.0,103160.0,0.93848488]
[1746781416286,0.1583,103170.0,103160.0,1.03848488]
[1746781416489,0.1583,103170.0,103160.0,0.93848488]
[1746781416876,0.2019074,103200.0,103190.0,0.1938269]
[1746781417078,0.105,103200.0,103190.0,0.84852801]
[1746781417383,0.105,103200.0,103190.0,0.70925771]
[1746781417578,0.2988081,103200.0,103190.0,2.3061898]
[1746781417781,0.4430081,103200.0,103190.0,2.4270601]
[1746781418082,0.4440081,103200.0,103190.0,2.42705915]
[1746781418270,0.4086,103200.0,103190.0,2.42705915]
[1746781418475,0.4086,103200.0,103190.0,1.07395915]
[1746781418973,0.4086,103200.0,103190.0,1.07095915]
[1746781419679,0.4086,103200.0,103190.0,1.06792929]
[1746781419877,0.4086,103200.0,103190.0,0.95008876]
[1746781420077,0.4086,103200.0,103190.0,1.07095906]
[1746781420277,0.6024081,103200.0,103190.0,1.07095906]
[1746781420483,0.6024081,103200.0,103190.0,0.61236186]
[1746781420683,0.7482081,103200.0,103190.0,0.44538876]
[1746781421183,0.7482081,103200.0,103190.0,0.56625906]
[1746781421376,0.7482081,103200.0,103190.0,0.56325906]
[1746781421578,0.2644,103200.0,103190.0,0.92405906]
[1746781421782,0.2644,103200.0,103190.0,1.09405906]
[1746781421981,0.2644,103200.0,103190.0,1.25005906]
[1746781422379,0.2644,103200.0,103190.0,1.08005893]
[1746781422781,0.00242,103210.0,103200.0,0.1938081]
[1746781422983,0.00242,103210.0,103200.0,0.96937819]
[1746781423287,0.00242,103210.0,103200.0,1.06937819]
[1746781423475,0.00242,103210.0,103200.0,1.17628171]
[1746781423680,0.00242,103210.0,103200.0,1.17328187]
[1746781423878,0.00242,103210.0,103200.0,1.07025261]
[1746781424085,0.00242,103210.0,103200.0,1.07328161]
[1746781424491,0.00242,103210.0,103200.0,1.23328161]
[1746781424782,0.00242,103210.0,103200.0,1.38738161]
[1746781424982,0.00242,103210.0,103200.0,1.40187385]
[1746781425485,0.00242,103210.0,103200.0,1.40187391]
[1746781425790,0.14622,103210.0,103200.0,1.02889963]
[1746781425981,0.14622,103210.0,103200.0,1.27064023]
[1746781426686,0.14622,103210.0,103200.0,1.11976993]
[1746781426983,0.4872093,103210.0,103200.0,1.11976993]
[1746781427286,0.14622,103210.0,103200.0,1.24064023]
[1746781427488,0.14622,103210.0,103200.0,0.99889963]
[1746781427691,0.14622,103210.0,103200.0,1.11976993]
[1746781427879,0.29342,103210.0,103200.0,1.11976993]
[1746781428081,0.29342,103210.0,103200.0,1.11676993]
[1746781428892,0.29342,103210.0,103200.0,0.99589963]
[1746781429188,0.29342,103210.0,103200.0,1.11676993]
[1746781429494,0.36643261,103210.0,103200.0,1.11676993]
[1746781430190,0.52193261,103210.0,103200.0,1.11376993]
[1746781431197,0.21923261,103210.0,103200.0,1.23464023]
[1746781431700,0.07543261,103210.0,103200.0,1.40464051]
[1746781432093,0.07543261,103210.0,103200.0,0.99289991]
[1746781432392,0.22573261,103210.0,103200.0,1.11077021]
[1746781432596,0.22573261,103210.0,103200.0,0.98989991]
[1746781432895,0.22573261,103210.0,103200.0,1.11077021]
[1746781433092,0.37353261,103210.0,103200.0,0.98989991]
[1746781433297,0.37353261,103210.0,103200.0,1.11077021]
[1746781433499,0.37353261,103210.0,103200.0,1.11077033]
[1746781433690,0.37353261,103210.0,103200.0,0.98990003]
[1746781434093,0.37353261,103210.0,103200.0,1.23164063]
[1746781434295,0.22573261,103210.0,103200.0,0.98990003]
[1746781434500,0.22573261,103210.0,103200.0,1.10777033]
[1746781435198,0.22573261,103210.0,103200.0,1.10474087]
[1746781435497,0.22573261,103210.0,103200.0,0.98387057]
[1746781435699,0.37353261,103210.0,103200.0,0.98387057]
[1746781435893,0.37353261,103210.0,103200.0,1.10474087]
[1746781436301,0.37353261,103210.0,103200.0,0.98387057]
[1746781436505,0.37353261,103210.0,103200.0,1.10474087]
[1746781436900,0.37353261,103210.0,103200.0,1.10174087]
[1746781438900,0.37353261,103210.0,103200.0,1.09874087]
[1746781439094,0.92812191,103210.0,103200.0,0.30620425]
[1746781439294,1.07932191,103210.0,103200.0,0.30620425]
[1746781439493,1.07932191,103210.0,103200.0,0.11239615]
[1746781439694,1.07932191,103210.0,103200.0,0.30620425]
[1746781440002,0.71852191,103210.0,103200.0,0.30620425]
[1746781440505,1.07932191,103210.0,103200.0,0.30620425]
[1746781440995,0.71852191,103210.0,103200.0,0.60990425]
[1746781441298,0.71852191,103210.0,103200.0,0.45550425]
[1746781441499,0.71852191,103210.0,103200.0,0.57637455]
[1746781441703,0.71852191,103210.0,103200.0,0.60690425]
[1746781443204,0.52473261,103210.0,103200.0,0.60690425]
[1746781443497,0.52196766,103210.0,103200.0,1.10857455]
[1746781443804,0.4493,103210.0,103200.0,1.10857455]
[1746781444004,0.4493,103210.0,103200.0,0.98770425]
[1746781445497,0.1503,103210.0,103200.0,1.29857455]
[1746781445803,0.12268769,103220.0,103210.0,0.1937893]
[1746781445998,0.12268769,103220.0,103210.0,0.7651596]
[1746781445999,0.27778769,103220.0,103210.0,0.7651596]
[1746781446398,0.27778769,103220.0,103210.0,1.22285413]
[1746781446997,0.43348769,103220.0,103210.0,1.22285413]
[1746781447496,0.43348769,103220.0,103210.0,1.22588323]
[1746781447705,0.43348769,103220.0,103210.0,1.23588323]
[1746781447893,0.62725819,103220.0,103210.0,1.11201293]
[1746781448297,0.98805819,103220.0,103210.0,0.29371293]
[1746781448604,0.98805819,103220.0,103210.0,0.29371341]
[1746781449103,0.98805819,103220.0,103210.0,0.29371343]
[1746781449903,0.98805819,103220.0,103210.0,0.59211343]
[1746781450109,0.98805819,103220.0,103210.0,0.29371343]
[1746781450307,0.43072363,103220.0,103210.0,0.29371345]
[1746781450505,0.27502363,103220.0,103210.0,1.08378375]
[1746781450707,0.27502363,103220.0,103210.0,1.43818375]
[1746781450907,0.42752363,103220.0,103210.0,1.43818375]
[1746781451099,0.46757627,103220.0,103210.0,1.28731345]
[1746781451294,0.46757627,103220.0,103210.0,1.53321345]
[1746781451499,0.46757627,103220.0,103210.0,1.65408375]
[1746781452403,0.31507627,103220.0,103210.0,1.65108375]
[1746781452710,0.46077627,103220.0,103210.0,1.65108375]
[1746781453207,0.31507627,103220.0,103210.0,1.65108375]
[1746781454099,0.31507627,103220.0,103210.0,1.53021345]
[1746781454299,0.31507627,103220.0,103210.0,1.71021345]
[1746781454499,0.31507627,103220.0,103210.0,1.52721345]
[1746781454703,0.31507627,103220.0,103210.0,1.64808375]
[1746781455405,0.31507627,103220.0,103210.0,1.23218375]
[1746781455604,0.31507627,103220.0,103210.0,1.23218323]
[1746781455806,0.25303694,103220.0,103210.0,1.23218323]
[1746781456409,0.25303694,103220.0,103210.0,1.11131293]
[1746781456609,0.40573694,103220.0,103210.0,1.12584293]
[1746781456810,0.40573694,103220.0,103210.0,1.24671323]
[1746781457003,0.40297377,103220.0,103210.0,1.24671323]
[1746781457199,0.40297377,103220.0,103210.0,1.12584293]
[1746781457404,0.40297377,103220.0,103210.0,1.12281383]
[1746781457614,0.40297377,103220.0,103210.0,1.24368413]
[1746781458310,0.40297377,103220.0,103210.0,1.12281383]
[1746781458712,0.40297377,103220.0,103210.0,1.24368413]
[1746781459023,0.40297377,103220.0,103210.0,1.24068413]
[1746781459509,0.30503683,103220.0,103210.0,1.11981383]
[1746781459811,0.30503683,103220.0,103210.0,1.24068413]
[1746781460698,0.15233683,103220.0,103210.0,1.44068413]
[1746781461101,0.15233683,103220.0,103210.0,1.24068413]
[1746781461407,0.15233683,103220.0,103210.0,1.23768413]
[1746781462511,0.15233683,103220.0,103210.0,1.22768413]
[1746781462707,0.14826448,103230.0,103220.0,0.1937705]
[1746781462899,0.00242,103230.0,103220.0,1.1581408]
[1746781463102,0.15352,103230.0,103220.0,1.1581408]
[1746781463309,0.15352,103230.0,103220.0,1.07502594]
[1746781463503,0.15075772,103230.0,103220.0,1.07502594]
[1746781463710,0.15075772,103230.0,103220.0,1.35502594]
[1746781463911,0.28964448,103240.0,103230.0,0.1937518]
[1746781464218,0.28964448,103240.0,103230.0,1.1218221]
[1746781464404,0.28964448,103240.0,103230.0,1.00398035]
[1746781464605,0.28964448,103240.0,103230.0,1.2217264]
[1746781465512,0.28964448,103240.0,103230.0,1.21869785]
[1746781466108,0.28964448,103240.0,103230.0,1.21569785]
[1746781466311,0.28964448,103240.0,103230.0,1.09482755]
[1746781466611,0.28964448,103240.0,103230.0,1.21972643]
[1746781466816,0.44654448,103240.0,103230.0,1.21972643]
[1746781467113,0.34073892,103240.0,103230.0,1.21972643]
[1746781467411,0.34073892,103240.0,103230.0,1.21669785]
[1746781468304,0.34073892,103240.0,103230.0,1.09282755]
[1746781468611,0.34073892,103240.0,103230.0,1.21369785]
[1746781469614,0.19693892,103240.0,103230.0,1.24369785]
[1746781470519,0.04003892,103240.0,103230.0,1.63456815]
[1746781470710,0.04003892,103240.0,103230.0,1.92456815]
[1746781470911,0.04003892,103240.0,103230.0,1.64456815]
[1746781471617,0.09775102,103240.0,103230.0,1.64456815]
[1746781472315,0.09775102,103240.0,103230.0,1.52369785]
[1746781472609,0.09484646,103240.0,103230.0,1.23982755]
[1746781472822,0.24004646,103240.0,103230.0,0.54192755]
[1746781473117,0.43377946,103240.0,103230.0,0.39262755]
[1746781473421,0.24004646,103240.0,103230.0,0.39262755]
[1746781473621,0.38434646,103240.0,103230.0,0.39262755]
[1746781474013,0.57807946,103240.0,103230.0,0.39262755]
[1746781474214,0.38434646,103240.0,103230.0,0.39262755]
[1746781474414,0.38434646,103240.0,103230.0,0.51349785]
[1746781474618,0.38434646,103240.0,103230.0,0.39262755]
[1746781474814,0.38434646,103240.0,103230.0,1.17339785]
[1746781475423,0.38434646,103240.0,103230.0,0.81259785]
[1746781475919,0.23914646,103240.0,103230.0,1.29426815]
[1746781476122,0.23914646,103240.0,103230.0,1.19426815]
[1746781476324,0.23914646,103240.0,103230.0,1.38426815]
[1746781476522,0.23914646,103240.0,103230.0,1.38729655]
[1746781476722,0.23914646,103240.0,103230.0,1.38429655]
[1746781477025,0.27082545,103280.0,103270.0,0.1936767]
[1746781477214,0.42852545,103280.0,103270.0,0.87837456]
[1746781477419,0.42852545,103280.0,103270.0,1.32497456]
[1746781477624,0.27082545,103280.0,103270.0,1.52184093]
[1746781477821,0.27082545,103280.0,103270.0,1.61288999]
[1746781479027,0.26806495,103280.0,103270.0,1.61288999]
[1746781479328,0.26806495,103280.0,103270.0,1.61388999]
[1746781480028,0.26806495,103280.0,103270.0,1.51388999]
[1746781480226,0.41026495,103280.0,103270.0,1.34388999]
[1746781480424,0.41026495,103280.0,103270.0,1.34086243]
[1746781480629,0.55286495,103280.0,103270.0,1.34086243]
[1746781480828,0.55286495,103280.0,103270.0,1.48086243]
[1746781481032,0.55286495,103280.0,103270.0,1.30786243]
[1746781481231,0.55286495,103280.0,103270.0,1.31786243]
[1746781481530,0.55286495,103280.0,103270.0,1.3326357]
[1746781481725,0.55286495,103280.0,103270.0,1.2117654]
[1746781481927,0.55286495,103280.0,103270.0,1.2017654]
[1746781482225,0.55286495,103280.0,103270.0,1.3326357]
[1746781482426,0.55286495,103280.0,103270.0,1.2117654]
[1746781482628,0.55286495,103280.0,103270.0,1.0272357]
[1746781483128,0.55286495,103280.0,103270.0,1.1972357]
[1746781483326,0.55010534,103280.0,103270.0,1.3477357]
[1746781483527,0.55010534,103280.0,103270.0,1.3241357]
[1746781484028,0.55010534,103280.0,103270.0,1.2032654]
[1746781484228,0.55010534,103280.0,103270.0,1.2919357]
[1746781484426,1.10456334,103280.0,103270.0,0.7332654]
[1746781484626,0.74376334,103280.0,103270.0,0.7332654]
[1746781484827,0.55010534,103280.0,103270.0,0.8541357]
[1746781485326,0.55010534,103280.0,103270.0,1.2149357]
[1746781485631,0.2848,103280.0,103270.0,0.7302654]
[1746781486132,0.2848,103280.0,103270.0,1.2119357]
[1746781486331,0.2848,103280.0,103270.0,1.5198357]
[1746781486834,0.2848,103280.0,103270.0,1.3989654]
[1746781487132,0.2848,103280.0,103270.0,1.5198357]
[1746781487327,0.2848,103280.0,103270.0,1.3989654]
[1746781487639,0.2848,103280.0,103270.0,1.5198357]
[1746781487930,0.28204128,103280.0,103270.0,1.5198357]
[1746781488125,0.28204128,103280.0,103270.0,1.5498357]
[1746781488326,0.28204128,103280.0,103270.0,1.4289654]
[1746781488527,0.28204128,103280.0,103270.0,1.5498357]
[1746781488732,0.28204128,103280.0,103270.0,1.5598357]
[1746781489227,0.28204128,103280.0,103270.0,1.0230654]
[1746781489433,0.28204128,103280.0,103270.0,1.1339357]
[1746781490124,0.28204128,103280.0,103270.0,1.1309357]